Cogmind - Beta 17 @@@ ROGUE MODE // 2026.07.22 @ 17:19:19 Player: Boomshanka Result: Destroyed by S-10 Pest with Light Assault Rifle Performance ------------- Evolutions (1) 500 Regions Visited (2) 400 Robots Destroyed (9) 45 Value Destroyed (141) 141 Prototype IDs (0) 0 Alien Tech Used (0) 0 Bonus (0) 0 TOTAL SCORE: 1086 Bonus ------- None Cogmind --------- Core Integrity 0/400 Matter 169/300 Energy 100/100 System Corruption 0% Temperature Cool (0) Movement Core (350) Ox6 Location -9/Materials Parts ------- > --- POWER (1) -------- (None) > --- PROPULSION (3) --- (None) > --- UTILITY (3) ------ Large Storage Unit > --- WEAPON (2) ------- (None) > --- INVENTORY (15) --- Medium Storage Unit Medium Storage Unit Small Battery (100) Light Assault Rifle Grenade Launcher Mining Laser Peak State ------------ > --- POWER ------------ Ion Engine > --- PROPULSION ------- Light Treads Aluminum Leg Aluminum Leg > --- UTILITY ---------- Medium Storage Unit Sensor Array Terrain Scanner > --- WEAPON ----------- Assault Rifle Light Assault Rifle > --- INVENTORY -------- Light Treads Light Treads Medium Storage Unit Large Storage Unit Small Battery Mining Laser [Rating: 9] Favorites ----------- Power Ion Engine Engine Ion Engine Propulsion Aluminum Leg Treads Light Treads Leg Aluminum Leg Utility Tractor Beam Device Tractor Beam Storage Medium Storage Unit Weapon Light Assault Rifle Energy Gun Medium Laser Ballistic Gun Light Assault Rifle Launcher Grenade Launcher Build | -11 -10 -9 ------- Run | Yrd Mat Mat Slots Evolved 2 | . . 2 Power . | . . . Propulsion 1 | . . 1 Utility 1 | . . 1 Weapon . | . . . Parts Attached 22 | 7 2 13 Power 3 | 1 . 2 Engine 3 | 1 . 2 Core . | . . . Reactor . | . . . Propulsion 6 | 1 1 4 Treads 3 | . . 3 Leg 3 | 1 1 1 Wheel . | . . . Hover . | . . . Flight . | . . . Utility 6 | 2 1 3 Device 3 | 1 . 2 Storage 3 | 1 1 1 Processor . | . . . Hackware . | . . . Protection . | . . . Artifact . | . . . Weapon 7 | 3 . 4 Energy Gun 1 | 1 . . Energy Cannon . | . . . Ballistic Gun 4 | 2 . 2 Ballistic Cannon . | . . . Launcher 2 | . . 2 Special Weapon . | . . . Impact Weapon . | . . . Slashing Weapon . | . . . Piercing Weapon . | . . . Special Melee Weapon . | . . . Unidentified Prototypes . | . . . Parts Lost 14 | . 4 10 Power 3 | . 1 2 Propulsion 5 | . 1 4 Utility 3 | . 1 2 Weapon 3 | . 1 2 Highest Loss Streak 10 | . 4 10 To Critical Strikes 1 | . . 1 Average Backups 7 | 4 8 7 Power . | 1 1 . Propulsion 1 | 1 2 1 Utility 2 | . 2 2 Weapon 2 | 1 2 2 Tool/Special . | . . . Unused Backups 5 | . 1 4 Power 1 | . 1 . Propulsion . | . . . Utility 2 | . . 2 Weapon 2 | . . 2 Tool/Special . | . . . Average Slot Usage (%) 88 | . 97 77 Engine 10 | . 12 7 Treads 7 | . . 15 Leg 18 | . 27 8 Device 15 | . 14 17 Storage 12 | . 14 11 Ballistic Gun 20 | . 27 12 Launcher 2 | . . 4 Peak Build Rating 9 | 6 8 9 Average Rating 6 | 3 7 7 On Entrance 3 | . 6 4 Avg Prop Armor Cover (%) . | . . . Naked Turns . | . . . Heaviest Build 32 | 13 18 32 Greatest Support 60 | 10 20 60 Greatest Overweight (x) 7 | 1 1 7 Average Overweight (x) . | . . . Largest Inventory Capacity 15 | 8 10 15 Average Capacity 11 | 7 9 13 Most Carried 10 | 7 10 9 Average Carried 7 | 4 8 7 Final Capacity 15 | 8 10 15 Final Carried 10 | 5 10 6 Class Distribution -------------------- 100% | Mutant Dominant Class ---------------- Mutant | -10/Materials Mutant | -9/Materials Resources | -11 -10 -9 ----------- Run | Yrd Mat Mat Matter Collected 363 | 275 29 59 Remotely 106 | 77 29 . Salvage Created 334 | 93 18 223 Parts 19 | 2 3 14 Haulers Intercepted . | . . . Recyclers Shooed . | . . . Parts Field Recycled . | . . . Retrieved Matter . | . . . Parts Self-Destructed . | . . . Prevented . | . . . Parts Restored . | . . . Kills | -11 -10 -9 ------- Run | Yrd Mat Mat Combat Hostiles Destroyed 6 | . 1 5 Guns 4 | . 1 3 AOE 2 | . . 2 Classes Destroyed 4 | 1 1 2 Worker 1 | . . 1 Recycler 2 | 1 . 1 Swarmer 4 | . 1 3 Grunt 2 | . . 2 Best Kill Streak 4 | 1 1 4 Combat Bots Only 3 | . 1 3 Max Kills in Single Turn 2 | 1 1 2 Gunslinging . | . . . Exploded 1 | . . 1 Melee . | . . . Uniques/NPCs Destroyed . | . . . Combat | -11 -10 -9 -------- Run | Yrd Mat Mat Hostile Shots Fired 292 | . 109 183 Missed 96 | . 43 53 Hits 196 | . 66 130 Projectile 196 | . 66 130 Critical Strikes 3 | . 1 2 Damage Taken 1967 | . 577 1390 Core 540 | . 140 400 Absorbed by Shields . | . . . Core Remaining (%) 72 | 100 44 . Volleys Fired 29 | 5 7 17 Largest 2 | 2 2 1 Hottest 70 | 70 40 30 Shots Fired 41 | 10 14 17 Gun 34 | 10 14 10 Cannon . | . . . Launcher 7 | . . 7 Special . | . . . Kinetic 29 | 5 14 10 Thermal 5 | 5 . . Explosive 7 | . . 7 Electromagnetic . | . . . Robot Hit Streak 4 | 2 4 2 Robot Miss Streak 4 | 3 3 4 Penetration Max . | . . . Secondary Targets 1 | . 1 . Max Gunslinging Chain 1 | . 1 . Shots Hit Robots 16 | 3 7 6 Core Hits 17 | 2 2 13 Critical Kills . | . . . Critical Parts Destroyed 1 | . 1 . Critical Strikes 1 | . 1 . Destroy 1 | . 1 . Melee Attacks . | . . . Impact . | . . . Slashing . | . . . Piercing . | . . . Sneak Attacks . | . . . Combat Hostiles . | . . . Follow-up Attacks . | . . . Damage Inflicted 424 | 34 68 322 Guns 140 | 34 68 38 Cannons . | . . . Explosions 284 | . . 284 Melee . | . . . Ramming . | . . . Kinetic 115 | 9 68 38 Thermal 25 | 25 . . Explosive 284 | . . 284 Electromagnetic . | . . . Impact . | . . . Slashing . | . . . Piercing . | . . . Highest Corruption 1 | . 1 . Average Corruption 1 | . 1 . Corruption Purged . | . . . Corruption Blocked . | . . . Overload Shots . | . . . Overflow Damage . | . . . Projectiles . | . . . Explosions . | . . . Melee . | . . . Knockbacks . | . . . Impact . | . . . Kinetic . | . . . Secondary . | . . . Self-Inflicted Damage 4 | . . 4 Shots 1 | . . 1 Rammed . | . . . Targets Rammed . | . . . Kicked . | . . . Crushed . | . . . Highest Temperature 40 | 40 . 7 Average Temperature 14 | 18 . 3 Received Heat Transfer 477 | . 96 381 Siege Activations . | . . . Martial Activations . | . . . Shielding Activations . | . . . Robots Disrupted . | . . . Combat Hostiles . | . . . Robots Corrupted . | . . . Combat Hostiles . | . . . Parts Fried . | . . . Impact Corruptions . | . . . Robots Melted . | . . . Combat Hostiles . | . . . Parts Melted . | . . . Heat Transferred 74 | 74 . . Parts Sabotaged . | . . . Parts Stolen . | . . . Parts Stripped . | . . . Power Chain Reactions . | . . . Alert | -11 -10 -9 ------- Run | Yrd Mat Mat Maximum Alert Level . | . . . Low Security (%) 100 | 100 100 100 Level 1 . | . . . Level 2 . | . . . Level 3 . | . . . Level 4 . | . . . Level 5 . | . . . High Security . | . . . Max Security . | . . . Peak Influence 147 | 5 20 147 Initial . | . . . Average 18 | 1 1 40 Influence Increases 274 | 5 37 232 Destroy 0b10 Robot/C 120 | . 20 100 Destroy 0b10 Robot/NC 15 | 5 . 10 Destroy Leader 10 | . . 10 Successful Hack 2 | . 2 . Disable Machine 30 | . . 30 Destroy Structure 22 | . . 22 Lose Combat Pursuer 75 | . 15 60 Influence Decreases 240 | 5 37 198 Time Decay 121 | 5 18 98 Lost Part 119 | . 19 100 Squads Dispatched 5 | . 2 3 Investigation 1 | . 1 . Extermination . | . . . Reinforcement 4 | . 1 3 Assault . | . . . Garrison . | . . . Intercept . | . . . Searches Triggered . | . . . Construction Impeded . | . . . Haulers Reinforced . | . . . Active Scanning Responses . | . . . Cargo Convoy Interrupts . | . . . Stealth | -11 -10 -9 --------- Run | Yrd Mat Mat Distress Signals 1 | . . 1 Communications Jammed . | . . . Distress Signals . | . . . Times Spotted 32 | . 9 23 Peak Tracking Total 11 | . 5 11 Tactical Retreats 5 | . 1 4 Traps | -11 -10 -9 ------- Run | Yrd Mat Mat Traps Triggered 2 | . 2 . Indirectly . | . . . Trap Hack Attempts . | . . . Triggered . | . . . Disarmed . | . . . Reprogrammed . | . . . Reused . | . . . Traps Extracted . | . . . Installed . | . . . Triggered . | . . . Machines | -11 -10 -9 ---------- Run | Yrd Mat Mat Machines Disabled 2 | . . 2 Max in Single Turn 1 | . . 1 Machines Repaired . | . . . Machines Dismantled . | . . . Machines Sabotaged . | . . . Overloaded Fab Kills . | . . . Hacking | -11 -10 -9 --------- Run | Yrd Mat Mat Machines Accessed 3 | . 3 . Terminals 2 | . 2 . Fabricators . | . . . Repair Stations . | . . . Recycling Units 1 | . 1 . Scanalyzers . | . . . Garrison Access . | . . . Total Hacks 3 | . 3 . Successful 2 | . 2 . Failed 1 | . 1 . Catastrophic . | . . . Database Lockouts . | . . . Manual . | . . . Terminals 2 | . 2 . Fabricators . | . . . Repair Stations . | . . . Recycling Units 1 | . 1 . Scanalyzers . | . . . Garrison Access . | . . . Terminal Hacks 1 | . 1 . Record 1 | . 1 . Fabricator Hacks . | . . . Repair Station Hacks . | . . . Recycling Unit Hacks 1 | . 1 . Report Inventory 1 | . 1 . Scanalyzer . | . . . Garrison Access Hacks . | . . . Unauthorized Hacks . | . . . Terminals . | . . . Fabricators . | . . . Repair Stations . | . . . Recycling Units . | . . . Scanalyzers . | . . . Garrison Access . | . . . Data Cores Recovered . | . . . Used . | . . . Hacking Detections . | . . . Full Trace Events . | . . . Feedback Events . | . . . Feedback Blocked . | . . . Robot Schematics Acquired . | . . . Robots Built . | . . . Authchips . | . . . Time . | . . . Total Robot Build Rating . | . . . Part Schematics Acquired . | . . . Parts Built . | . . . Authchips . | . . . Time . | . . . Total Part Build Rating . | . . . Part Studies Acquired . | . . . Parts Repaired . | . . . Time . | . . . Parts Recycled . | . . . Recycled Matter . | . . . Retrieved Matter . | . . . Retrieved Components . | . . . Parts Scanalyzed . | . . . Part Schematics Acquired . | . . . Parts Damaged . | . . . Bothacking | -11 -10 -9 ------------ Run | Yrd Mat Mat Used RIF Installer . | . . . Robots Hacked . | . . . Non-combat . | . . . Combat . | . . . Robot Hacks Applied . | . . . Relay Couplers Released . | . . . Fabnet Peak Effective % . | . . . Robots Rewired . | . . . Allies Hacked . | . . . Hacks Repelled . | . . . Allies | -11 -10 -9 -------- Run | Yrd Mat Mat Total Allies . | . . . Largest Group . | . . . Highest-Rated Group . | . . . Highest-Rated Ally . | . . . Total Orders . | . . . Ally Attacks . | . . . Total Damage . | . . . Kills . | . . . Allies Corrupted . | . . . Allies Melted . | . . . Intel | -11 -10 -9 ------- Run | Yrd Mat Mat Active Infowar (turns) 370 | . . 370 Sensors 370 | . . 370 Terrain 311 | . . 311 Robot Analysis Total . | . . . Derelict Logs Recovered . | . . . Drone Launches . | . . . Drone Recoveries . | . . . Exploration | -11 -10 -9 ------------- Run | Yrd Mat Mat Turns Passed 957 | 78 466 413 Spaces Moved 598 | 38 352 208 Core 18 | 15 . 3 Treads 104 | . . 104 Legs 476 | 23 352 101 Wheels . | . . . Hover . | . . . Flight . | . . . Fastest Speed 50 | 50 120 120 Average Speed 135 | 116 121 161 Slowest Speed 400 | 190 190 400 Overloaded Moves . | . . . Propulsion Burnouts . | . . . Robots Hopped . | . . . Potential Cave-ins . | . . . Cave-ins Triggered . | . . . Exploration Rate (%) 28 | 4 50 30 Regions Visited 2 Branch Regions . Pre-discovered Areas . | . . . Known Exits Taken . | . . . Unknown Exits Taken 2 | 1 1 . Scrap Searched . | . . . Spaces Dug . | . . . Terrain Destroyed 24 | . . 24 Melee . | . . . Projectile . | . . . AOE 24 | . . 24 Terrain Rammed . | . . . Walls Destroyed . | . . . Machines Disabled . | . . . Actions | -11 -10 -9 --------- Run | Yrd Mat Mat Total 709 | 62 379 268 Wait 30 | 4 7 19 Move 596 | 37 351 208 Hop . | . . . Pick Up 24 | 8 9 7 Fast Attach 3 | 3 . . Attach 14 | 4 1 9 Detach 1 | 1 . . Swap 6 | . 1 5 Drop 6 | . 3 3 Fire 29 | 5 7 17 Melee . | . . . Ram . | . . . Kick . | . . . Crush . | . . . Escape Stasis . | . . . Rewire . | . . . Trap . | . . . Miscellaneous . | . . . Route ------- -11/Scrapyard -10/Materials -9/Materials (discovered 1 exit: [*Min]) History --------- Turn | Location | Event 12 | -11/Scrapyard | Discovered new exit (range 16) 79 | -11/Scrapyard | Entered Materials 257 | -10/Materials | Discovered new exit (range 14) 312 | -10/Materials | Build established: Mutant 545 | -10/Materials | Entered another Materials area 545 | -9/Materials | Evolved 2 slots: Propulsion x1, Utility x1 572 | -9/Materials | Lost 4 parts (1p1n1u1w) 626 | -9/Materials | Discovered new exit (range 16) 908 | -9/Materials | Core integrity fell below 50% 947 | -9/Materials | Core integrity fell below 20% 958 | -9/Materials | Destroyed by S-10 Pest with Light Assault Rifle Last Messages --------------- 00807_ U-05 Engineer builds a Wall. 00808_ U-05 Engineer lays Concrete. 00814_ Ion Engine destroyed. 00815_ Critical hit (Burn: +37). 00825_ Lgt. Treads destroyed. 00827_ G-34 Mercenary destroyed. 00838_ S-10 Pest destroyed. 00840_ Acquired 19 matter. 00842_ O-16 Technician: "IFF HANDSHAKE FAILED. SECURING TERMINAL." 00847_ S-10 Pest destroyed. 00848_ Lgt. Treads destroyed. 00854_ ALERT: Hostiles spotted, dispatching reinforcements to Terminal M006. 00861_ Assault Rifle destroyed. 00866_ Grenade Launcher destroyed. 00880_ Critical hit (Destroy). 00880_ Lgt. Treads destroyed. 00885_ Terrain Scanner destroyed. 00915_ Ion Engine destroyed. 00927_ Sensor Array destroyed. 00951_ Aluminum Leg destroyed. Map ----- +----------------------------------------------------+ | #??# # %* #???? """ # =%% #?????????????????? | | ???##### #???# """ ####/#####?????????????????? | | ???#???# #???# """ #??# #?#?#####?????????????? | | ???????# #???#! #??#*#???# #???#?????????? | | ??????? ?#?# """ #?##=#???# " #?????????????? | | ?????? #??# ?""" #??#%#???# T #???#?????????? | | ????? T #??# """ ####/##### " #?? ??????????? | | ????? #??# + [[= ## #???#???#?????? | | ?????## #??? """ # = ## ! #?? ##????????? | | ??????###+###???????" # ## ### ###???????? | | ????????? ??????????? # """ ###+## #???????? | | ????????????????????? # """ # #####???? | | ?????????????????????## """ / #?? | | ?????????????????? ???# # #####???? | | ?????????????????????## """ ### ## #???????? | | ?????????????#####????# """ #?#+####+#######???? | | ?????????????+ ???# """ #?# !#???? | | ??????????????# ???# #?# """ ]][ #???? | | ??????????????# ############## """ ][[ #???? | | ??????????????# / """ ][[ #???? | | ??????????????# ########### #???? | | ??????????????# """ #?????????#############????? | | ??????????????# """ #?????#????????????????????? | | ??????????????# """ #???#???????? ?????????????? | | ??????????????# ^ ############???????????????? | | ??????????????# gs @ +??????????????? | | ??????????????# """ g #########????"??????????? | | ??????????????# """ #???????????????????????? | | ??????????????# """ #???????????????????????? | | ??????????????# #???????????????????????? | | ??????????????# #???????????????????????? | | ??????????????# """ +???????????????????????? | | ??????????????+ """ #???????????????????????? | | ??????????????# """ #???????????????????????? | | ??????????????# ? #???????????????????????? | | ??????????????#?? #???????????????????????? | | ???????????????? """ #???????????????????????? | | ?????????????????""" #???????????????????????? | | ???????????????????" #???????????????????????? | | ??????????????????? #???????????????????????? | | ??????????????????? ????????????????????????? | | ????????????????????## ????????????????????????? | | ?????????????????????? ????????????????????????? | | ?????????????????????????????????????????????????? | | ?????????????????????????????????????????????????? | | ?????????????????????????????????????????????????? | | ?????????????????????????????????????????????????? | | ?????????????????????????????????????????????????? | | ?????????????????????????????????????????????????? | | ?????????????????????????????????????????????????? | +----------------------------------------------------+ Best States ------------- Heat Dissipation 28 Energy Generation 10 Energy Capacity 250 Matter Stores 300 Matter Capacity 300 Sight Range 16 Robot Scan Range 14 Terrain Scan Range 14 Terrain Scan Density 10 Evasion (%) 55 Recoil Reduction 3 Item Schematics ----------------- None Robot Schematics ------------------ None Fabricated ------------ Nothing Repaired ---------- Nothing Studied --------- None Alien Tech Used ----------------- None Achievements -------------- None Challenges ------------ None Game ------ Seed TrapConceptPit Manual? 0 Play Time 00:20:49 Cumulative 14.1 hours Start 2026.07.22 @ 16:49:42 End 2026.07.22 @ 17:19:19 Sessions 1 Manual Loads 0 Difficulty Rogue Special Mode None Game No. 10 Rogue 9 Adventurer 1 Explorer 0 Win Type - Total 0 Types 0/0/0/0/0/0/0/0/0/0 Lore% 7 Gallery% 12 Achievement% 13 Wizard Run 0 Options --------- Layout 0 ASCII 0 Keyboard 0 Movement Mouse Keybinds 0 Fullscreen 1 Font 18/SmallcapsGlow Map View 112x50 Zoom Use 0% Tactical HUD 1 Map Filters NONE Filters NONE Steam 1 RUN: edc70503-bc7f-4e8c-a556-8e2684202bf0